lending/lending_fUSD_20250409
["ID","MTS","AMOUNT","RATE_DAILY","PERIOD"]
[357624658,1744242640844,-150.0,0.00028317,2]
[357624659,1744242640854,-500.0,0.00028317,2]
[357624660,1744242640863,-500.0,0.00028317,2]
[357624661,1744242640872,-150.0,0.00028317,2]
[357624662,1744242640882,-500.0,0.00028317,2]
[357624663,1744242640892,-500.0,0.00028317,2]
[357624664,1744242640901,-249.95197694,0.00028317,2]
[357624665,1744242640911,-500.0,0.00028317,2]
[357624666,1744242640920,-500.0,0.00028317,2]
[357624667,1744242640930,-500.0,0.00028317,2]
[357624668,1744242640939,-544.0,0.00028317,2]
[357624669,1744242640949,-500.0,0.00028317,2]
[357624670,1744242640958,-613.56627816,0.00028317,2]
[357624671,1744242640968,-500.0,0.00028317,2]
[357624672,1744242640977,-776.64905278,0.00028317,2]
[357624673,1744242640987,-500.0,0.00028317,2]
[357624674,1744242640997,-500.0,0.00028317,2]
[357624675,1744242641007,-162.41010314,0.00028327,2]
[357624676,1744242641016,-153.04314863,0.00028327,5]
[357624677,1744242641026,-351.54465372,0.00028327,5]
[357624678,1744242641035,-289.98355149,0.00028327,5]
[357624679,1744242641045,-171.0165566,0.00028345,2]
[357624680,1744242641055,-249.78459325,0.00028345,2]
[357624681,1744242641065,-500.0,0.00028345,2]
[357624682,1744242641074,-500.0,0.00028345,2]
[357624683,1744242641083,-249.46611034,0.00028345,2]
[357624684,1744242641093,-500.0,0.00028345,2]
[357624685,1744242641103,-500.0,0.00028345,2]
[357624686,1744242641113,-500.0,0.00028345,2]
[357624687,1744242641122,-500.0,0.00028345,2]
[357624689,1744242641132,-500.0,0.00028345,2]
[357624690,1744242641141,-544.0,0.00028345,2]
[357624692,1744242641151,-500.0,0.00028345,2]
[357624694,1744242641160,-500.0,0.00028345,2]
[357624696,1744242641169,-500.0,0.00028345,2]
[357624698,1744242641179,-500.0,0.00028345,2]
[357624700,1744242641188,-502.59258299,0.0002836,5]
[357624702,1744242641198,-786.22575512,0.00028372,2]
[357624704,1744242641208,-500.0,0.00028372,2]
[357624706,1744242641217,-500.0,0.00028372,2]
[357624708,1744242641227,-500.0,0.00028372,2]
[357624710,1744242641237,-500.0,0.00028372,2]
[357624712,1744242641247,-500.0,0.00028372,2]
[357624714,1744242641257,-500.0,0.00028372,2]
[357624716,1744242641267,-544.0,0.00028372,2]
[357624735,1744242641443,-500.0,0.00028372,2]
[357624737,1744242641453,-500.0,0.00028372,2]
[357624739,1744242641463,-500.0,0.00028372,2]
[357624741,1744242641473,-500.0,0.00028372,2]
[357624743,1744242641482,-14950.2369468,0.00028389,2]
[357624745,1744242641491,-500.0,0.00028399,2]
[357624747,1744242641500,-500.0,0.00028399,2]
[357624749,1744242641510,-730.61173295,0.00028399,2]
[357624751,1744242641519,-500.0,0.00028399,2]
[357624753,1744242641529,-517.6933534,0.00028399,2]
[357624755,1744242641540,-500.0,0.00028399,2]
[357624757,1744242641548,-544.0,0.00028399,2]
[357624759,1744242641557,-500.0,0.00028399,2]
[357624761,1744242641567,-500.0,0.00028399,2]
[357624763,1744242641577,-500.0,0.00028399,2]
[357624765,1744242641586,-500.0,0.00028399,2]
[357624767,1744242641595,-500.0,0.00028427,2]
[357624769,1744242641604,-507.49509777,0.00028427,2]
[357624771,1744242641613,-500.0,0.00028427,2]
[357624773,1744242641622,-537.14114017,0.00028427,2]
[357624775,1744242641631,-544.0,0.00028427,2]
[357624777,1744242641641,-916.76187876,0.00028427,2]
[357624779,1744242641651,-500.0,0.00028427,2]
[357624781,1744242641660,-500.0,0.00028427,2]
[357624783,1744242641669,-500.0,0.00028427,2]
[357624785,1744242641679,-500.0,0.00028454,2]
[357624787,1744242641688,-500.0,0.00028454,2]
[357624789,1744242641697,-544.0,0.00028454,2]
[357624790,1744242641707,-500.0,0.00028454,2]
[357624792,1744242641717,-500.0,0.00028454,2]
[357624794,1744242641728,-656.81077614,0.00028454,2]
[357624796,1744242641737,-500.0,0.00028482,2]
[357624798,1744242641746,-500.0,0.00028482,2]
[357624800,1744242641755,-544.0,0.00028482,2]
[357624802,1744242641765,-500.0,0.00028482,2]
[357624804,1744242641774,-500.0,0.00028482,2]
[357624806,1744242641783,-500.0,0.00028509,2]
[357624808,1744242641792,-500.0,0.00028509,2]
[357624810,1744242641802,-544.0,0.00028509,2]
[357624812,1744242641811,-500.0,0.00028509,2]
[357624814,1744242641820,-995.59680159,0.00028509,2]
[357624816,1744242641829,-1000.0,0.00028526,2]
[357624818,1744242641838,-500.0,0.00028536,2]
[357624820,1744242641847,-500.0,0.00028536,2]
[357624822,1744242641856,-544.0,0.00028536,2]
[357624823,1744242641865,-500.0,0.00028536,2]
[357624824,1744242641874,-500.0,0.00028564,2]
[357624825,1744242641883,-500.0,0.00028564,2]
[357624826,1744242641892,-544.0,0.00028564,2]
[357624827,1744242641902,-500.0,0.00028564,2]
[357624828,1744242641911,-551.0,0.00028591,5]
[357624829,1744242641920,-500.0,0.00028591,2]
[357624830,1744242641929,-500.0,0.00028591,2]
[357624831,1744242641938,-544.0,0.00028591,2]
[357624832,1744242641947,-500.0,0.00028591,2]
[357624833,1744242641956,-500.0,0.00028619,2]
[357624834,1744242641966,-500.0,0.00028619,2]
[357624835,1744242641975,-544.0,0.00028619,2]
[357624836,1744242641985,-839.0,0.00028619,2]
[357624837,1744242641993,-500.0,0.00028646,2]
[357624838,1744242642003,-500.0,0.00028646,2]
[357624839,1744242642012,-544.0,0.00028646,2]
[357624840,1744242642021,-944.0,0.00028673,2]
[357624842,1744242642031,-500.0,0.00028673,2]
[357624843,1744242642040,-544.0,0.00028673,2]
[357624845,1744242642049,-743.0,0.00028701,2]
[357624847,1744242642058,-544.0,0.00028701,2]
[357624849,1744242642067,-544.0,0.00028728,2]
[357624851,1744242642077,-558.0,0.00028756,2]
[357624853,1744242642086,-270.79,0.00028767,2]
[357624855,1744242642096,-625.12,0.00028805,2]
[357624857,1744242642105,-500.0,0.00029,2]
[357624859,1744242642115,-500.0,0.00029043,2]
[357624861,1744242642124,-500.0,0.00029043,5]
[357624863,1744242642133,-14950.2369468,0.00029057,2]
[357624865,1744242642142,-167.52,0.00029067,2]
[357624867,1744242642151,-248.71531821,0.00029085,2]
[357624869,1744242642160,-923.12170777,0.000297,2]
[357624871,1744242642169,-243.0,0.0002971,2]
[357624873,1744242642178,-161.77,0.00029765,2]
[357624875,1744242642187,-162.41010314,0.00029774,2]
[357624877,1744242642197,-167.90252669,0.0003,2]
[357624879,1744242642206,-270.0,0.0003,30]
[357624881,1744242642215,-781.2412629,0.0003,2]
[357624883,1744242642224,-989.5,0.00030101,2]
[357624885,1744242642234,-167.52,0.00030134,2]
[357624886,1744242642243,-270.79,0.00030136,2]
[357624889,1744242642253,-156.05154127,0.00030161,2]
[357624890,1744242642262,-1000.0,0.00030161,2]
[357624892,1744242642271,-1286.0,0.00030186,2]
[357624894,1744242642280,-599.401,0.00030186,2]
[357624896,1744242642289,-1326.0,0.00030186,2]
[357624898,1744242642298,-907.0,0.00030186,2]
[357624900,1744242642307,-791.0,0.00030186,2]
[357624902,1744242642317,-1436.0,0.00030186,2]
[357624904,1744242642333,-1278.0,0.00030186,2]
[357624907,1744242642342,-550.709,0.00030186,2]
[357624908,1744242642351,-297.6,0.00030186,2]
[357624910,1744242642360,-904.153,0.00030186,2]
[357624912,1744242642369,-155.19,0.00030186,2]
[357624914,1744242642379,-693.51882305,0.0003038,2]
[357624916,1744242642387,-257.91778498,0.00030454,2]
[357624918,1744242642397,-550.0,0.00031,2]
[357624920,1744242642406,-625.12,0.00031069,2]
[357624922,1744242642416,-1000.0,0.00031096,2]
[357624924,1744242642425,-1000.0,0.00031143,2]
[357624926,1744242642434,-410.33492546,0.00031167,5]
[357624928,1744242642443,-162.41010314,0.0003122,2]
[357624930,1744242642452,-1000.0,0.00031288,2]
[357624932,1744242642461,-923.12170777,0.00031354,2]
[357624934,1744242642471,-243.0,0.0003136,2]
[357624936,1744242642480,-89701.421681,0.0003137,2]
[357624938,1744242642489,-49440.0062468,0.0003137,2]
[357624940,1744242642498,-151.34,0.0003137,2]
[357624942,1744242642507,-162871.42626514,0.0003138,2]
[357624944,1744242642516,-151.0,0.0003138,7]
[357624946,1744242642525,-151.0,0.0003138,7]
[357624948,1744242642534,-151.0,0.0003138,7]
[357624950,1744242642543,-151.0,0.0003138,7]
[357624951,1744242642552,-151.0,0.0003138,7]
[357624953,1744242642561,-151.0,0.0003138,7]
[357624955,1744242642570,-151.0,0.0003138,7]
[357624957,1744242642579,-151.0,0.0003138,7]
[357624959,1744242642588,-151.0,0.0003138,7]
[357624961,1744242642597,-151.0,0.0003138,7]
[357624963,1744242642606,-151.0,0.0003138,7]
[357624965,1744242642615,-151.0,0.0003138,7]
[357624967,1744242642624,-151.0,0.0003138,7]
[357624969,1744242642634,-151.0,0.0003138,7]
[357624971,1744242642643,-151.0,0.0003138,7]
[357624973,1744242642652,-151.0,0.0003138,7]
[357624975,1744242642661,-275.59456,0.0003138,7]
[357624977,1744242642670,-151.0,0.0003138,7]
[357624979,1744242642679,-1154.15070237,0.0003138,2]
[357624981,1744242642688,-151.0,0.0003138,7]
[357624983,1744242642697,-151.0,0.0003138,7]
[357624985,1744242642707,-438.390124,0.0003138,7]
[357624987,1744242642717,-438.390124,0.0003138,7]
[357624988,1744242642728,-151.0,0.0003138,7]
[357624990,1744242642740,-151.0,0.0003138,7]
[357624992,1744242642750,-177.806214,0.0003138,7]
[357624994,1744242642759,-246.144028,0.0003138,7]
[357624996,1744242642771,-546.277687,0.0003138,7]
[357624998,1744242642780,-546.277687,0.0003138,7]
[357625000,1744242642789,-884.1,0.00031426,2]
[357625002,1744242642799,-318.72,0.00031426,2]
[357625004,1744242642811,-5687.2,0.00031426,2]
[357625006,1744242642821,-150.0,0.00031495,2]
[357625008,1744242642830,-150.0,0.00031499,2]
[357625010,1744242642840,-150.0,0.00031506,2]
[357625012,1744242642849,-270.79,0.00031506,2]
[357625014,1744242642858,-150.0,0.00031521,2]
[357625016,1744242642867,-150.0,0.00031533,2]
[357625018,1744242642876,-150.0,0.00031534,2]
[357625020,1744242642885,-150.0,0.00031536,2]
[357625022,1744242642894,-150.0,0.00031537,2]
[357625024,1744242642903,-150.0,0.00031538,2]
[357625026,1744242642912,-150.0,0.00031554,2]
[357625028,1744242642922,-150.0,0.00031559,2]
[357625030,1744242642931,-150.0,0.00031559,2]
[357625032,1744242642940,-150.0,0.00031562,2]
[357625034,1744242642949,-150.0,0.00031564,2]
[357625036,1744242642958,-150.0,0.00031565,2]
[357625038,1744242642967,-150.0,0.00031571,2]
[357625040,1744242642977,-150.0,0.00031581,2]
[357625042,1744242642986,-1000.0,0.00031592,2]
[357625044,1744242642994,-150.0,0.00031596,2]
[357625046,1744242643004,-150.0,0.00031599,2]
[357625048,1744242643013,-150.0,0.00031599,2]
[357625050,1744242643022,-150.0,0.000316,2]
[357625052,1744242643031,-371.0,0.000316,2]
[357625054,1744242643040,-756.0,0.000316,2]
[357625056,1744242643049,-234.0,0.000316,2]
[357625058,1744242643058,-988.5,0.000316,2]
[357625060,1744242643067,-150.0,0.00031601,2]
[357625062,1744242643076,-150.0,0.00031602,2]
[357625064,1744242643085,-150.0,0.00031604,2]
[357625066,1744242643094,-150.0,0.00031608,2]
[357625067,1744242643103,-150.0,0.0003161,2]
[357625069,1744242643112,-150.0,0.00031612,2]
[357625071,1744242643121,-150.0,0.00031615,2]
[357625073,1744242643129,-150.0,0.00031617,2]
[357625075,1744242643139,-150.0,0.00031617,2]
[357625077,1744242643148,-150.0,0.00031619,2]
[357625079,1744242643157,-150.0,0.00031619,2]
[357625081,1744242643165,-150.0,0.00031621,2]
[357625083,1744242643175,-150.0,0.00031624,2]
[357625085,1744242643184,-150.0,0.00031627,2]
[357625087,1744242643194,-150.0,0.00031636,2]
[357625089,1744242643203,-150.0,0.00031638,2]
[357625091,1744242643213,-150.0,0.00031639,2]
[357625093,1744242643222,-150.0,0.00031639,2]
[357625095,1744242643232,-150.0,0.00031641,2]
[357625097,1744242643242,-150.0,0.00031642,2]
[357625099,1744242643252,-12360.0015617,0.00031644,2]
[357625101,1744242643261,-150.0,0.00031646,2]
[357625103,1744242643271,-150.0,0.00031649,2]
[357625105,1744242643281,-150.0,0.00031651,2]
[357625107,1744242643290,-14950.2369468,0.00031654,2]
[357625109,1744242643299,-150.0,0.00031657,2]
[357625111,1744242643308,-150.0,0.00031658,2]
[357625114,1744242643318,-150.0,0.00031659,2]
[357625117,1744242643328,-150.0,0.00031663,2]
[357625119,1744242643337,-150.0,0.00031664,2]
[357625121,1744242643348,-150.0,0.00031666,2]
[357625123,1744242643358,-150.0,0.0003167,2]
[357625125,1744242643367,-150.0,0.00031674,2]
[357625127,1744242643376,-150.0,0.00031679,2]
[357625129,1744242643386,-150.0,0.00031685,2]
[357625131,1744242643395,-150.0,0.00031686,2]
[357625133,1744242643405,-150.0,0.00031688,2]
[357625135,1744242643414,-156.56935632,0.00031692,2]
[357625137,1744242643423,-150.0,0.00031693,2]
[357625139,1744242643432,-150.0,0.00031693,2]
[357625140,1744242643442,-1000.0,0.00031695,2]
[357625143,1744242643451,-150.0,0.00031698,2]
[357625145,1744242643461,-150.0,0.00031699,2]
[357625146,1744242643470,-150.0,0.00031704,2]
[357625149,1744242643480,-150.0,0.00031707,2]
[357625150,1744242643490,-150.0,0.00031707,2]
[357625152,1744242643500,-150.0,0.00031708,2]
[357625155,1744242643509,-150.0,0.00031711,2]
[357625156,1744242643519,-150.0,0.00031712,2]
[357625158,1744242643528,-150.0,0.00031715,2]
[357625160,1744242643538,-150.0,0.00031723,2]
[357625162,1744242643547,-150.0,0.00031725,2]
[357625164,1744242643557,-150.0,0.00031727,2]
[357625166,1744242643566,-150.0,0.00031728,2]
[357625168,1744242643575,-150.0,0.0003173,2]
[357625170,1744242643584,-987.80024434,0.0003173,2]
[357625172,1744242643594,-150.0,0.00031736,2]
[357625174,1744242643603,-150.0,0.00031737,2]
[357625176,1744242643612,-150.0,0.0003174,2]
[357625178,1744242643622,-150.0,0.00031741,2]
[357625180,1744242643632,-150.0,0.00031747,2]
[357625182,1744242643642,-150.0,0.00031751,2]
[357625184,1744242643652,-150.0,0.00031751,2]
[357625186,1744242643661,-150.0,0.00031755,2]
[357625188,1744242643671,-150.0,0.00031756,2]
[357625190,1744242643681,-150.0,0.00031761,2]
[357625192,1744242643691,-150.0,0.00031761,2]
[357625208,1744242643861,-150.0,0.00031762,2]
[357625209,1744242643870,-150.0,0.00031763,2]
[357625210,1744242643880,-150.0,0.00031763,2]
[357625211,1744242643889,-150.0,0.00031767,2]
[357625212,1744242643899,-150.0,0.00031767,2]
[357625213,1744242643908,-150.0,0.00031767,2]
[357625214,1744242643917,-150.0,0.00031768,2]
[357625215,1744242643926,-150.0,0.00031768,2]
[357625216,1744242643935,-150.0,0.00031768,2]
[357625217,1744242643944,-150.0,0.00031771,2]
[357625218,1744242643953,-150.0,0.00031772,2]
[357625219,1744242643963,-150.0,0.00031781,2]
[357625220,1744242643972,-150.0,0.00031783,2]
[357625221,1744242643981,-150.0,0.00031785,2]
[357625222,1744242643991,-150.0,0.00031788,2]
[357625223,1744242644000,-150.0,0.0003179,2]
[357625225,1744242644009,-156.28715357,0.0003179,2]
[357625227,1744242644018,-150.0,0.00031791,2]
[357625229,1744242644028,-150.0,0.00031794,2]
[357625230,1744242644038,-150.0,0.00031795,2]
[357625233,1744242644048,-150.0,0.00031809,2]
[357625234,1744242644057,-150.0,0.00031811,2]
[357625237,1744242644066,-150.0,0.00031813,2]
[357625238,1744242644076,-150.0,0.00031814,2]
[357625240,1744242644086,-150.0,0.00031815,2]
[357625242,1744242644096,-150.0,0.00031817,2]
[357625244,1744242644106,-150.0,0.00031821,2]
[357625246,1744242644115,-267.46074303,0.00031823,2]
[357625248,1744242644125,-150.0,0.00031827,2]
[357625250,1744242644134,-150.0,0.00031828,2]
[357625252,1744242644144,-150.0,0.00031831,2]
[357625254,1744242644154,-150.0,0.00031833,2]
[357625256,1744242644163,-150.0,0.00031835,2]
[357625258,1744242644173,-150.0,0.00031835,2]
[357625260,1744242644182,-150.0,0.00031836,2]
[357625262,1744242644192,-12360.0015617,0.00031847,2]
[357625264,1744242644202,-157.0,0.00031857,7]
[357625266,1744242644211,-170.03766194,0.00031857,7]
[357625268,1744242644222,-157.0,0.00031857,7]
[357625271,1744242644232,-157.0,0.00031857,7]
[357625272,1744242644241,-157.0,0.00031857,7]
[357625274,1744242644251,-283.6747734,0.00031857,7]
[357625276,1744242644260,-150.0,0.00032,2]
[357625278,1744242644269,-1236.657,0.00032,31]
[357625280,1744242644279,-165.40605854,0.00032,31]
[357625282,1744242644288,-161.77,0.00032246,2]
[357625284,1744242644298,-205.3645,0.000323,120]
[357625286,1744242644307,-150.0,0.000323,120]
[357625288,1744242644318,-532.69,0.00032646,2]
[357625290,1744242644328,-162.41010314,0.00032667,2]
[357625292,1744242644337,-270.79,0.00032876,2]
[357625294,1744242644347,-1500.0,0.00032877,120]
[357625296,1744242644356,-460.0,0.000329,2]
[357625298,1744242644366,-386.52780346,0.000329,2]
[357625300,1744242644376,-600.0,0.00033,2]
[357625302,1744242644385,-923.12170777,0.00033009,2]
[357625304,1744242644395,-243.0,0.0003302,2]
[357625306,1744242644404,-167.32,0.00033116,120]
[357625308,1744242644414,-14950.2369468,0.00033176,2]
[357625310,1744242644423,-12360.0015617,0.00033176,2]
[357625312,1744242644434,-1286.0,0.00033186,2]
[357625315,1744242644443,-574.0,0.00033186,2]
[357625316,1744242644453,-1326.0,0.00033186,2]
[357625318,1744242644464,-606.861,0.00033186,2]
[357625320,1744242644472,-791.0,0.00033186,2]
[357625322,1744242644481,-1436.0,0.00033186,2]
[357625324,1744242644491,-1278.0,0.00033186,2]
[357625326,1744242644500,-852.0,0.00033186,2]
[357625328,1744242644509,-151.0,0.00033186,2]
[357625330,1744242644518,-277.35679052,0.00033192,2]
[357625332,1744242644527,-150.2,0.00033328,2]
[357625334,1744242644537,-625.12,0.00033333,2]
[357625336,1744242644546,-161.31919907,0.00033788,120]
[357625338,1744242644555,-10926.77029157,0.000338,120]
[357625340,1744242644564,-400.0,0.000339,12]
[357625342,1744242644573,-162.41010314,0.00034114,2]
[357625344,1744242644582,-12360.0015617,0.00034227,2]
[357625346,1744242644591,-14950.2369468,0.00034237,2]
[357625348,1744242644600,-12360.0015617,0.00034237,2]
[357625349,1744242644610,-270.79,0.00034246,2]
[357625351,1744242644619,-620.16965448,0.00034247,7]
[357625353,1744242644628,-620.16965448,0.00034247,7]
[357625355,1744242644638,-620.16965448,0.00034247,7]
[357625357,1744242644647,-620.16965448,0.00034247,7]
[357625359,1744242644657,-620.16965448,0.00034247,7]
[357625361,1744242644666,-620.16965448,0.00034247,7]
[357625363,1744242644675,-620.16965448,0.00034247,7]
[357625365,1744242644685,-620.16965448,0.00034247,7]
[357625367,1744242644694,-620.16965448,0.00034247,7]
[357625369,1744242644703,-620.16965448,0.00034247,7]
[357625371,1744242644713,-620.16965448,0.00034247,7]
[357625373,1744242644730,-620.16965448,0.00034247,7]
[357625375,1744242644740,-2069.54,0.00034264,2]
[357625377,1744242644749,-876.27844952,0.00034522,2]
[357625379,1744242644759,-1000.0,0.00034522,5]
[357625380,1744242644769,-287.61899177,0.00034561,2]
[357625381,1744242644778,-923.12170777,0.00034663,2]
[357625382,1744242644787,-209.0,0.0003467,2]
[357625383,1744242644796,-243.0,0.0003467,2]
[357625384,1744242644806,-161.77,0.00034726,2]
[357625385,1744242644815,-1000.0,0.00034779,30]
[357625386,1744242644824,-1000.0,0.00034865,2]
[357625387,1744242644833,-4000.0,0.00035,120]
[357625388,1744242644843,-650.0,0.00035,2]
[357625389,1744242644852,-160.7,0.00035,2]
[357625390,1744242644862,-675.06,0.00035,2]
[357625391,1744242644871,-156.05154127,0.00035441,2]
[357625392,1744242644880,-162.41010314,0.0003556,2]
[357625393,1744242644889,-12360.0015617,0.00035577,2]
[357625394,1744242644899,-14950.2369468,0.00035587,2]
[357625395,1744242644908,-625.12,0.00035597,2]
[357625396,1744242644918,-270.79,0.00035616,2]
[357625397,1744242644928,-1319.48,0.00035644,30]
[357625398,1744242644937,-483.68,0.0003572,2]
[357625399,1744242644946,-298.26089446,0.0003593,2]
[357625400,1744242644955,-150.0,0.0003595,7]
[357625401,1744242644964,-181.494,0.0003595,7]
[357625402,1744242644974,-1286.0,0.00036186,2]
[357625403,1744242644983,-574.0,0.00036186,2]
[357625404,1744242644993,-1326.0,0.00036186,2]
[357625405,1744242645002,-716.717,0.00036186,2]
[357625406,1744242645012,-449.159,0.00036186,2]
[357625407,1744242645022,-1278.0,0.00036186,2]
[357625408,1744242645031,-852.0,0.00036186,2]
[357625409,1744242645040,-151.0,0.00036186,2]
[357625410,1744242645050,-151.041006,0.00036198,120]
[357625411,1744242645059,-923.12170777,0.00036317,2]
[357625412,1744242645069,-209.0,0.0003632,30]
[357625413,1744242645079,-243.0,0.0003632,2]
[357625414,1744242645088,-151.041006,0.00036498,120]
[357625415,1744242645098,-12360.0015617,0.0003677,3]
[357625416,1744242645108,-14950.2369468,0.0003678,3]
[357625417,1744242645117,-12360.0015617,0.0003678,3]
[357625418,1744242645127,-14950.2369468,0.0003679,3]
[357625419,1744242645137,-12360.0015617,0.0003679,3]
[357625420,1744242645146,-151.041006,0.00036798,120]
[357625421,1744242645155,-40000.0,0.000368,120]
[357625422,1744242645164,-195.561287,0.000368,7]
[357625423,1744242645173,-160.084196,0.000368,7]
[357625424,1744242645183,-151.0,0.000368,7]
[357625425,1744242645192,-151.0,0.000368,7]
[357625427,1744242645201,-151.0,0.000368,7]
[357625429,1744242645210,-227.995112,0.000368,7]
[357625431,1744242645221,-151.0,0.000368,7]
[357625433,1744242645229,-216.168698,0.000368,7]
[357625434,1744242645239,-151.0,0.000368,7]
[357625435,1744242645248,-438.390124,0.000368,7]
[357625436,1744242645257,-438.390124,0.000368,7]
[357625437,1744242645267,-270.79,0.00036986,2]
[357625438,1744242645276,-12360.0015617,0.0003699,3]
[357625439,1744242645286,-4000.0,0.00037,120]
[357625440,1744242645295,-2080.10700312,0.00037,2]
[357625441,1744242645304,-700.0,0.00037,2]
[357625442,1744242645314,-162.41010314,0.00037007,2]
[357625443,1744242645323,-151.041006,0.00037198,120]
[357625444,1744242645332,-161.77,0.00037207,2]
[357625445,1744242645342,-289.501958,0.00037235,7]
[357625446,1744242645352,-167.32,0.00037256,120]
[357625447,1744242645362,-151.0,0.00037292,7]
[357625448,1744242645371,-309.29654756,0.00037299,2]
[357625449,1744242645380,-151.811063,0.0003744,7]
[357625450,1744242645390,-242.704239,0.0003744,7]
[357625451,1744242645399,-242.704239,0.0003744,7]
[357625452,1744242645408,-151.041006,0.00037498,120]
[357625453,1744242645417,-14950.2369468,0.0003758,3]
[357625454,1744242645426,-219.16757,0.000376,120]
[357625455,1744242645436,-151.0,0.000376,7]
[357625456,1744242645445,-151.0,0.000376,7]
[357625457,1744242645455,-151.0,0.000376,7]
[357625458,1744242645464,-151.0,0.000376,7]
[357625459,1744242645474,-151.0,0.00037785,7]
[357625460,1744242645483,-254.959028,0.00037785,7]
[357625461,1744242645493,-254.959028,0.00037785,7]
[357625462,1744242645502,-274.1347,0.00037785,7]
[357625463,1744242645511,-274.1347,0.00037785,7]
[357625464,1744242645520,-151.0,0.00037785,7]
[357625465,1744242645530,-151.041006,0.00037798,120]
[357625466,1744242645539,-900.0,0.000378,13]
[357625467,1744242645549,-625.12,0.00037861,2]
[357625468,1744242645558,-177.806214,0.00037884,7]
[357625469,1744242645567,-546.277687,0.00037884,7]
[357625470,1744242645576,-546.277687,0.00037884,7]
[357625471,1744242645585,-12360.0015617,0.0003789,3]
[357625472,1744242645595,-151.0,0.000379,7]
[357625473,1744242645604,-151.0,0.000379,7]
[357625474,1744242645614,-1300.0,0.000379,13]
[357625475,1744242645623,-923.12170777,0.00037972,2]
[357625476,1744242645632,-209.0,0.0003798,30]
[357625477,1744242645642,-243.0,0.0003798,2]
[357625478,1744242645651,-151.0,0.0003798,7]
[357625479,1744242645661,-4000.0,0.00038,120]
[357625480,1744242645670,-475.0,0.00038,120]
[357625481,1744242645679,-151.0,0.00038,7]
[357625482,1744242645689,-151.0,0.00038,7]
[357625483,1744242645698,-151.0,0.00038,7]
[357625484,1744242645708,-150.87456836,0.00038,30]
[357625485,1744242645718,-1000.0,0.00038034,2]
[357625486,1744242645730,-160.7,0.00038034,2]
[357625487,1744242645740,-157.041006,0.00038198,120]
[357625488,1744242645749,-198.48276704,0.00038246,11]
[357625489,1744242645759,-240.8724961,0.00038246,2]
[357625490,1744242645769,-14950.2369468,0.00038315,3]
[357625491,1744242645778,-12360.0015617,0.00038315,3]
[357625492,1744242645788,-192.42048527,0.00038315,2]
[357625493,1744242645797,-14950.2369468,0.00038326,3]
[357625494,1744242645807,-49440.0062468,0.00038326,3]
[357625495,1744242645817,-89701.421681,0.00038336,3]
[357625496,1744242645826,-67485.31034426,0.00038346,3]
[357625514,1744242646513,-409.725,0.00038346,3]
[357625517,1744242647028,-1120.0,0.00030186,2]
[357625519,1744242647037,-150.0,0.00031404,2]
[357625521,1744242647047,-150.0,0.00031539,2]
[357625523,1744242647056,-150.0,0.00031563,2]
[357625525,1744242647066,-150.0,0.0003178,2]